bitfinex-derivatives/quotes_BNBF0:USTF0_20250413
["timestamp","ask_amount","ask_price","bid_price","bid_amount"]
[1744577539823,0.626244,582.87,582.62,0.574]
[1744577540025,0.626244,582.86,582.62,0.574]
[1744577540324,0.626244,582.85,582.62,0.574]
[1744577540632,0.626244,582.84,582.61,0.489]
[1744577540828,0.626244,582.83,582.61,0.489]
[1744577541029,0.626244,582.82,582.61,0.489]
[1744577541229,0.626244,582.81,582.61,0.489]
[1744577541427,0.626244,582.8,582.61,0.489]
[1744577541628,0.62625009,582.79,582.61,0.489]
[1744577541830,0.62625009,582.78,582.61,0.489]
[1744577542027,0.62625009,582.77,582.61,0.489]
[1744577542327,0.62625009,582.76,582.61,0.489]
[1744577542531,0.62625009,582.75,582.61,0.489]
[1744577542727,0.62625009,582.74,582.61,0.489]
[1744577542932,0.215,583.03,582.61,0.489]
[1744577543132,0.62658531,583.02,582.61,0.489]
[1744577543430,0.62658531,583.01,582.62,0.681]
[1744577543633,0.62658531,583.0,582.62,0.681]
[1744577543837,0.62658531,582.99,582.62,0.681]
[1744577544132,0.62658531,582.98,582.62,0.681]
[1744577544330,0.62658531,582.97,582.62,0.681]
[1744577544535,0.62658531,582.96,582.62,0.681]
[1744577544735,0.62658531,582.95,582.62,0.681]
[1744577544937,0.62658531,582.94,582.62,0.681]
[1744577545132,0.62658531,582.93,582.62,0.681]
[1744577545337,0.62658531,582.92,582.62,0.681]
[1744577545633,0.62658531,582.91,582.62,0.681]
[1744577545935,0.62658531,582.9,582.62,0.681]
[1744577546132,0.215,583.03,582.62,0.681]
[1744577546133,0.62658531,582.89,582.62,0.681]
[1744577546436,0.62658531,582.88,582.62,0.681]
[1744577546636,0.62658531,582.87,582.62,0.681]
[1744577546833,0.62658531,582.86,582.62,0.681]
[1744577547037,0.62658531,582.85,582.62,0.681]
[1744577547237,0.62658531,582.84,582.62,0.681]
[1744577547438,0.62658531,582.83,582.62,0.681]
[1744577547737,0.62658531,582.82,582.62,0.681]
[1744577548039,0.62658531,582.81,582.62,0.681]
[1744577548232,0.62658531,582.8,582.62,0.681]
[1744577548437,0.215,583.03,582.62,0.681]
[1744577548637,0.62686504,583.02,582.62,0.681]
[1744577548837,0.62686504,583.01,582.62,0.681]
[1744577549035,0.62686504,583.0,582.62,0.681]
[1744577549234,0.62686504,582.99,582.62,0.681]
[1744577549439,0.62686504,582.98,582.62,0.681]
[1744577549639,0.62686504,582.97,582.62,0.681]
[1744577549839,0.62686504,582.96,582.62,0.681]
[1744577550039,0.62686504,582.95,582.62,0.681]
[1744577550237,0.62686504,582.94,582.62,0.681]
[1744577550436,0.62686504,582.93,582.62,0.681]
[1744577550634,0.62686504,582.92,582.62,0.681]
[1744577550838,0.62686504,582.91,582.62,0.681]
[1744577551137,0.62686504,582.9,582.62,0.681]
[1744577551334,0.62686504,582.89,582.62,0.681]
[1744577551538,0.62686504,582.88,582.62,0.681]
[1744577551735,0.62686504,582.87,582.62,0.681]
[1744577551935,0.62686504,582.86,582.62,0.681]
[1744577552141,0.62686504,582.85,582.62,0.681]
[1744577552339,0.62686504,582.84,582.62,0.681]
[1744577552535,0.62686504,582.83,582.62,0.681]
[1744577552740,0.62686504,582.82,582.62,0.681]
[1744577552937,0.62686504,582.81,582.62,0.681]
[1744577553242,0.62686504,582.8,582.62,0.681]
[1744577553439,0.62686504,582.79,582.62,0.681]
[1744577553739,0.62686504,582.78,582.62,0.681]
[1744577553940,0.62686504,582.77,582.62,0.681]
[1744577554140,0.215,583.03,582.62,0.681]
[1744577554342,0.62623811,583.02,582.62,0.681]
[1744577554541,0.62623811,583.01,582.62,0.681]
[1744577554840,0.62623811,583.0,582.62,0.681]
[1744577555040,0.62623811,582.99,582.62,0.681]
[1744577555237,0.62623811,582.98,582.62,0.681]
[1744577555436,0.62623811,582.97,582.61,0.489]
[1744577555637,0.62623811,582.96,582.61,0.489]
[1744577555842,0.62623811,582.95,582.61,0.489]
[1744577556043,0.62623811,582.94,582.61,0.489]
[1744577556241,0.62623811,582.93,582.61,0.489]
[1744577556538,0.62623811,582.92,582.61,0.489]
[1744577556738,0.62623811,582.91,582.61,0.489]
[1744577556937,0.62623811,582.9,582.61,0.489]
[1744577557138,0.62623811,582.89,582.61,0.489]
[1744577557342,0.62623811,582.88,582.61,0.489]
[1744577557542,0.62623811,582.87,582.61,0.489]
[1744577557746,0.62623811,582.86,582.6,0.601]
[1744577557939,0.62623811,582.85,582.6,0.601]
[1744577558139,0.215,583.03,582.6,0.601]
[1744577558140,0.62623811,582.84,582.6,0.601]
[1744577558437,0.62623811,582.83,582.6,0.601]
[1744577558641,0.62623811,582.82,582.6,0.601]
[1744577558841,0.62623811,582.81,582.6,0.601]
[1744577559038,0.62623811,582.8,582.6,0.601]
[1744577559238,0.62623811,582.79,582.6,0.601]
[1744577559437,0.62623811,582.78,582.6,0.601]
[1744577559639,0.34283559,583.37,582.6,0.601]
[1744577559943,0.93673581,583.36,582.6,0.601]
[1744577560142,0.93673581,583.35,582.6,0.601]
[1744577560443,0.93673581,583.34,582.6,0.601]
[1744577560643,0.62623904,583.33,582.6,0.601]
[1744577560840,0.62623904,583.32,582.6,0.601]
[1744577561044,0.93680576,583.31,582.6,0.601]
[1744577561244,0.62634312,583.3,582.6,0.601]
[1744577561445,0.62634312,583.29,582.61,0.607]
[1744577561645,0.62634312,583.28,582.61,0.607]
[1744577561940,0.62634312,583.27,582.61,0.607]
[1744577562139,0.62634312,583.26,582.61,0.607]
[1744577562443,0.62634312,583.25,582.61,0.607]
[1744577562640,0.62634312,583.24,582.61,0.607]
[1744577562844,0.62634312,583.23,582.61,0.607]
[1744577563044,0.62634312,583.22,582.61,0.607]
[1744577563242,0.62634312,583.21,582.61,0.607]
[1744577563445,0.62634312,583.2,582.61,0.607]
[1744577563646,0.62634312,583.19,582.61,0.607]
[1744577563945,0.62634312,583.18,582.61,0.607]
[1744577564142,0.62634312,583.17,582.61,0.607]
[1744577564342,0.62634312,583.16,582.61,0.607]
[1744577564541,0.62634312,583.15,582.61,0.607]
[1744577564743,0.62634312,583.14,582.61,0.607]
[1744577564941,0.62634312,583.13,582.61,0.607]
[1744577565240,0.62634312,583.12,582.61,0.607]
[1744577565444,0.62634312,583.11,582.61,0.607]
[1744577565642,0.62634312,583.1,582.61,0.607]
[1744577565942,0.62634312,583.09,582.61,0.607]
[1744577566242,0.62634312,583.08,582.61,0.607]
[1744577566445,0.62634312,583.07,582.61,0.607]
[1744577566645,0.62634312,583.06,582.61,0.607]
[1744577566839,0.62634312,583.05,582.61,0.607]
[1744577567040,0.62634312,583.04,582.61,0.607]
[1744577567244,0.62634312,583.03,582.61,0.607]
[1744577567539,0.62634312,583.02,582.61,0.607]
[1744577567744,0.62634312,583.01,582.61,0.607]
[1744577567944,0.62634312,583.0,582.61,0.607]
[1744577568144,0.62634312,582.99,582.61,0.607]
[1744577568447,0.62624869,582.98,582.61,0.607]
[1744577568748,0.62624869,582.97,582.61,0.607]
[1744577569043,0.62624869,582.96,582.61,0.607]
[1744577569247,0.62624869,582.95,582.61,0.607]
[1744577569447,0.62624869,582.94,582.61,0.607]
[1744577569645,0.62624869,582.93,582.61,0.607]
[1744577569848,0.62624869,582.92,582.61,0.607]
[1744577570048,0.62624869,582.91,582.61,0.607]
[1744577570250,0.62624869,582.9,582.61,0.607]
[1744577570445,0.62624869,582.89,582.61,0.607]
[1744577570650,0.62624869,582.88,582.61,0.607]
[1744577570851,0.62624869,582.87,582.61,0.607]
[1744577571149,0.62624869,582.86,582.61,0.607]
[1744577571349,0.62624869,582.85,582.61,0.607]
[1744577571548,0.62624869,582.84,582.61,0.607]
[1744577571750,0.62614817,582.83,582.61,0.607]
[1744577571945,0.62614817,582.82,582.61,0.607]
[1744577572250,0.62614817,582.81,582.61,0.607]
[1744577572449,0.215,583.3,582.61,0.607]
[1744577572754,0.6262367,583.29,582.61,0.607]
[1744577572948,0.6262367,583.28,582.61,0.607]
[1744577573146,0.6262367,583.27,582.61,0.607]
[1744577573345,0.6262367,583.26,582.61,0.607]
[1744577573552,0.62654335,583.25,582.61,0.607]
[1744577573850,0.62654335,583.24,582.61,0.607]
[1744577574051,0.34283559,583.37,582.61,0.607]
[1744577574252,0.62645532,583.36,582.62,0.609]
[1744577574446,0.62645532,583.35,582.62,0.609]
[1744577574645,0.62645532,583.34,582.62,0.609]
[1744577574847,0.62645532,583.33,582.62,0.609]
[1744577575050,0.62645532,583.32,582.62,0.609]
[1744577575247,0.62645532,583.31,582.62,0.609]
[1744577575449,0.34283559,583.37,582.62,0.609]
[1744577575450,0.62645532,583.3,582.62,0.609]
[1744577575656,0.62645532,583.29,582.62,0.609]
[1744577575952,0.62645532,583.28,582.62,0.609]
[1744577576152,0.62645532,583.27,582.63,0.558]
[1744577576350,0.62645532,583.26,582.63,0.558]
[1744577576553,0.62645532,583.25,582.63,0.558]
[1744577576754,0.62645532,583.24,582.64,0.672]
[1744577577054,0.62645532,583.23,582.64,0.672]
[1744577577350,0.62645532,583.22,582.64,0.672]
[1744577577553,0.62645532,583.21,582.64,0.672]
[1744577577754,0.62645532,583.2,582.64,0.672]
[1744577577954,0.62645532,583.19,582.64,0.672]
[1744577578255,0.62645532,583.18,582.64,0.672]
[1744577578550,0.62645532,583.17,582.64,0.672]
[1744577578754,0.62645532,583.16,582.64,0.672]
[1744577579050,0.62645532,583.15,582.64,0.672]
[1744577579248,0.62645532,583.14,582.64,0.672]
[1744577579454,0.62645532,583.13,582.64,0.672]
[1744577579652,0.62645532,583.12,582.64,0.672]
[1744577579851,0.62645532,583.11,582.64,0.672]
[1744577580047,0.62645532,583.1,582.64,0.672]
[1744577580250,0.62645532,583.09,582.64,0.672]
[1744577580450,0.62645532,583.08,582.64,0.672]
[1744577580651,0.62645532,583.07,582.64,0.672]
[1744577580854,0.62645532,583.06,582.64,0.672]
[1744577581056,0.62645532,583.05,582.64,0.672]
[1744577581355,0.62645532,583.04,582.64,0.672]
[1744577581555,0.62645532,583.03,582.64,0.672]
[1744577581757,0.62645532,583.02,582.64,0.672]
[1744577582056,0.62645532,583.01,582.64,0.672]
[1744577582256,0.62645532,583.0,582.64,0.672]
[1744577582458,0.62645532,582.99,582.64,0.672]
[1744577582659,0.62645532,582.98,582.64,0.672]
[1744577582856,0.62645532,582.97,582.64,0.672]
[1744577583057,0.62645532,582.96,582.64,0.672]
[1744577583257,0.62645532,582.95,582.64,0.672]
[1744577583458,0.62645532,582.94,582.64,0.672]
[1744577583661,0.62645532,582.93,582.64,0.672]
[1744577583958,0.62645532,582.92,582.64,0.672]
[1744577584155,0.62645532,582.91,582.64,0.672]
[1744577584353,0.62645532,582.9,582.64,0.672]
[1744577584556,0.62645532,582.89,582.64,0.672]
[1744577584755,0.62645532,582.88,582.64,0.672]
[1744577584959,0.62645532,582.87,582.64,0.672]
[1744577585159,0.62645532,582.86,582.64,0.672]
[1744577585358,0.62645532,582.85,582.64,0.672]
[1744577585557,0.62645532,582.84,582.64,0.672]
[1744577585863,0.62645532,582.83,582.64,0.672]
[1744577586057,0.215,583.29,582.64,0.672]
[1744577586058,0.62645532,582.82,582.64,0.672]
[1744577586261,0.62645532,582.81,582.64,0.672]
[1744577586459,0.62645532,582.8,582.64,0.672]
[1744577586763,0.215,583.29,582.64,0.672]
[1744577586764,0.62645532,582.79,582.64,0.672]
[1744577586962,0.215,583.29,582.64,0.672]
[1744577587163,0.62619903,583.28,582.64,0.672]
[1744577587459,0.62619903,583.27,582.64,0.672]
[1744577587659,0.62619903,583.26,582.64,0.672]
[1744577587862,0.62619903,583.25,582.64,0.672]
[1744577588062,0.62619903,583.24,582.64,0.672]
[1744577588262,0.62619903,583.23,582.64,0.672]
[1744577588559,0.62619903,583.22,582.64,0.672]
[1744577588759,0.62619903,583.21,582.64,0.672]
[1744577588961,0.62619903,583.2,582.64,0.672]
[1744577589164,0.62619903,583.19,582.64,0.672]
[1744577589459,0.62619903,583.18,582.64,0.672]
[1744577589665,0.62619903,583.17,582.64,0.672]
[1744577589860,0.62619903,583.16,582.64,0.672]
[1744577590061,0.62619903,583.15,582.64,0.672]
[1744577590259,0.62619903,583.14,582.64,0.672]
[1744577590465,0.62619903,583.13,582.64,0.672]
[1744577590664,0.62619903,583.12,582.64,0.672]
[1744577590861,0.62611427,583.11,582.64,0.672]
[1744577591063,0.62611427,583.1,582.64,0.672]
[1744577591363,0.62611427,583.09,582.64,0.672]
[1744577591562,0.62611427,583.08,582.64,0.672]
[1744577591763,0.62611427,583.07,582.63,0.558]
[1744577591963,0.62611427,583.06,582.65,0.584]
[1744577592166,0.62611427,583.05,582.65,0.584]
[1744577592365,0.62611427,583.04,582.65,0.584]
[1744577592567,0.62612659,583.03,582.65,0.584]
[1744577592766,0.62612659,583.02,582.65,0.584]
[1744577593064,0.62612659,583.01,582.65,0.584]
[1744577593265,0.62612659,583.0,582.65,0.584]
[1744577593466,0.215,583.29,582.65,0.584]
[1744577593467,0.62612659,582.99,582.65,0.584]
[1744577593666,0.62612659,582.98,582.65,0.584]
[1744577593866,0.62612659,582.97,582.65,0.584]
[1744577594066,0.215,583.29,582.65,0.584]
[1744577594067,0.62612659,582.96,582.65,0.584]
[1744577594268,0.62612659,582.95,582.65,0.584]
[1744577594463,0.62612659,582.94,582.65,0.584]
[1744577594765,0.62612659,582.93,582.65,0.584]
[1744577594967,0.62612659,582.92,582.65,0.584]
[1744577595164,0.62612659,582.91,582.65,0.584]
[1744577595368,0.62612659,582.9,582.65,0.584]
[1744577595568,0.62612659,582.89,582.65,0.584]
[1744577595767,0.62612659,582.88,582.65,0.584]
[1744577595964,0.62612659,582.87,582.65,0.584]
[1744577596168,0.62612659,582.86,582.65,0.584]
[1744577596473,0.62612659,582.85,582.65,0.584]
[1744577596670,0.62612659,582.84,582.65,0.584]
[1744577596869,0.62612659,582.83,582.65,0.584]
[1744577597069,0.62612659,582.82,582.65,0.584]
[1744577597269,0.62612659,582.81,582.65,0.584]
[1744577597570,0.62612659,582.8,582.65,0.584]
[1744577597868,0.62612659,582.79,582.65,0.584]
[1744577598069,0.62612659,582.78,582.65,0.584]
[1744577598269,0.215,583.29,582.65,0.584]
[1744577598270,0.62612659,582.77,582.65,0.584]
[1744577598469,0.215,583.29,582.65,0.584]
[1744577598665,0.93711133,583.28,582.65,0.584]
[1744577598869,0.93711133,583.27,582.65,0.584]
[1744577599069,0.93711133,583.26,582.65,0.584]
[1744577599372,0.62636635,583.25,582.65,0.584]
[1744577599569,0.62636635,583.24,582.65,0.584]
[1744577599766,0.62636635,583.23,582.65,0.584]
[1744577599969,0.62636635,583.22,582.65,0.584]
[1744577600169,0.62636635,583.21,582.65,0.584]
[1744577600367,0.62636635,583.2,582.65,0.584]
[1744577600570,0.215,583.29,582.65,0.584]
[1744577600571,0.62636635,583.19,582.65,0.584]
[1744577600767,0.62636635,583.18,582.65,0.584]
[1744577600965,0.62636635,583.17,582.65,0.584]
[1744577601172,0.62636635,583.16,582.65,0.584]
[1744577601367,0.62636635,583.15,582.65,0.584]
[1744577601573,0.62636635,583.14,582.65,0.584]
[1744577601771,0.62636635,583.13,582.65,0.584]
[1744577601967,0.62636635,583.12,582.65,0.584]
[1744577602170,0.62636635,583.11,582.65,0.584]
[1744577602371,0.62636635,583.1,582.65,0.584]
[1744577602570,0.62636635,583.09,582.65,0.584]
[1744577602773,0.62636635,583.08,582.65,0.584]
[1744577603069,0.62636635,583.07,582.65,0.584]
[1744577603272,0.62655467,583.06,582.65,0.584]
[1744577603472,0.62655467,583.05,582.65,1.122]
[1744577603672,0.62655467,583.04,582.65,1.122]
[1744577603872,0.62655467,583.03,582.65,1.122]
[1744577604067,0.62655467,583.02,582.65,1.122]
[1744577604270,0.62655467,583.01,582.65,1.122]
[1744577604467,0.62655467,583.0,582.65,1.122]
[1744577604672,0.62655467,582.99,582.65,1.122]
[1744577604971,0.62655467,582.98,582.65,1.122]
[1744577605273,0.62655467,582.97,582.65,1.122]
[1744577605474,0.62655467,582.96,582.65,1.122]
[1744577605671,0.62655467,582.95,582.65,1.122]
[1744577605872,0.62655467,582.94,582.65,1.122]
[1744577606168,0.62655467,582.93,582.65,1.122]
[1744577606471,0.62655467,582.92,582.65,1.122]
[1744577606675,0.62655467,582.91,582.65,1.122]
[1744577606972,0.62655467,582.9,582.65,1.122]
[1744577607174,0.62655467,582.89,582.65,1.122]
[1744577607474,0.62655467,582.88,582.65,1.122]
[1744577607773,0.62655467,582.87,582.65,1.122]
[1744577607969,0.62655467,582.86,582.65,1.122]
[1744577608173,0.62655467,582.85,582.65,1.122]
[1744577608374,0.62655467,582.84,582.65,1.122]
[1744577608581,0.62655467,582.83,582.65,1.122]
[1744577608769,0.62655467,582.82,582.65,1.122]
[1744577608973,0.62655467,582.81,582.65,1.122]
[1744577609174,0.62655467,582.8,582.65,1.122]
[1744577609375,0.62655467,582.79,582.65,1.122]
[1744577609673,0.62655467,582.78,582.65,1.122]
[1744577609869,0.62655467,582.77,582.65,1.122]
[1744577610069,0.62655467,582.76,582.65,1.122]
[1744577610269,0.62655467,582.75,582.65,1.122]
[1744577610469,0.62655467,582.74,582.65,1.122]
[1744577610670,0.62655467,582.73,582.65,1.122]
[1744577610870,0.62655467,582.72,582.65,1.122]
[1744577611070,0.62655467,582.71,582.65,1.122]
[1744577611271,0.62655467,582.7,582.65,1.122]
[1744577611472,0.62655467,582.69,582.65,1.122]
[1744577611672,0.62655467,582.68,582.65,1.122]
[1744577611977,0.62595386,582.67,582.65,1.122]
[1744577612177,0.62595386,582.66,582.65,1.122]
[1744577612877,0.62595386,582.66,582.65,0.538]
[1744577613078,0.215,583.06,582.65,0.538]
[1744577613279,0.6260688,583.05,582.65,0.538]
[1744577613473,0.6260688,583.04,582.65,0.538]
[1744577613678,0.6260688,583.03,582.65,0.538]
[1744577613877,0.62603211,583.02,582.65,0.538]
[1744577614075,0.62603211,583.01,582.65,0.538]
[1744577614373,0.62603211,583.0,582.65,0.538]
[1744577614579,0.62603211,582.99,582.65,0.538]
[1744577614775,0.62603211,582.98,582.65,0.538]
[1744577614977,0.62603211,582.97,582.65,0.538]
[1744577615278,0.62603211,582.96,582.65,0.538]
[1744577615477,0.215,583.06,582.65,0.538]
[1744577615675,0.62592875,583.05,582.65,0.538]
[1744577615975,0.62592875,583.04,582.65,0.538]
[1744577616179,0.62592875,583.03,582.65,0.538]
[1744577616374,0.62592875,583.02,582.65,0.538]
[1744577616574,0.62592875,583.01,582.65,0.538]
[1744577616778,0.215,583.06,582.65,0.538]
[1744577616779,0.62592875,583.0,582.65,0.538]
[1744577616978,0.62592875,582.99,582.65,0.538]
[1744577617176,0.62592875,582.98,582.65,0.538]
[1744577617376,0.62592875,582.97,582.65,0.538]
[1744577617580,0.62592875,582.96,582.65,0.538]
[1744577617875,0.62592875,582.95,582.65,0.538]
[1744577618082,0.62592875,582.94,582.65,0.538]
[1744577618280,0.62592875,582.93,582.65,0.538]
[1744577618478,0.62592875,582.92,582.65,0.538]
[1744577618676,0.62592875,582.91,582.65,0.538]
[1744577618975,0.62592875,582.9,582.65,0.538]
[1744577619179,0.62592875,582.89,582.65,0.538]
[1744577619480,0.62592875,582.88,582.65,0.538]
[1744577619678,0.62592875,582.87,582.65,0.538]
[1744577619974,0.62592875,582.86,582.65,0.538]
[1744577620178,0.62592875,582.85,582.65,0.538]
[1744577620375,0.62592875,582.84,582.65,0.538]
[1744577620676,0.62592875,582.83,582.65,0.538]
[1744577620876,0.62592875,582.82,582.65,0.538]
[1744577621081,0.62592875,582.81,582.65,0.538]
[1744577621377,0.62592875,582.8,582.65,0.538]
[1744577621582,0.62592875,582.79,582.65,0.538]
[1744577621776,0.62592875,582.78,582.65,0.538]
[1744577621981,0.62592875,582.77,582.65,0.538]
[1744577622183,0.62592875,582.76,582.65,0.538]
[1744577622380,0.62592875,582.75,582.65,0.538]
[1744577622684,0.62555254,582.74,582.65,0.538]
[1744577622878,0.62555254,582.73,582.65,0.538]
[1744577623083,0.62555254,582.72,582.65,0.538]
[1744577623282,0.62555254,582.71,582.65,0.538]
[1744577623483,0.62555254,582.7,582.65,0.538]
[1744577623783,0.62555254,582.69,582.65,0.538]
[1744577623980,0.62555254,582.68,582.65,0.538]
[1744577624182,0.62555254,582.67,582.65,0.538]
[1744577624382,0.62555254,582.66,582.65,0.538]
[1744577625183,0.215,583.06,582.65,0.538]
[1744577625487,0.62544039,583.05,582.65,0.538]
[1744577625688,0.62544039,583.04,582.65,0.538]
[1744577625881,0.62544039,583.03,582.65,0.538]
[1744577626084,0.62544039,583.02,582.65,0.538]
[1744577626285,0.62544039,583.01,582.65,0.538]
[1744577626481,0.62544039,583.0,582.65,0.538]
[1744577626685,0.62544039,582.99,582.65,0.538]
[1744577626885,0.62544039,582.98,582.65,0.538]
[1744577627085,0.62544039,582.97,582.65,0.538]
[1744577627382,0.62544039,582.96,582.65,0.538]
[1744577627586,0.62544039,582.95,582.65,0.538]
[1744577627888,0.62544039,582.94,582.65,0.538]
[1744577628085,0.62544039,582.93,582.65,0.538]
[1744577628288,0.62544039,582.92,582.65,0.538]
[1744577628484,0.62544039,582.91,582.65,0.538]
[1744577628690,0.62544039,582.9,582.65,0.538]
[1744577628883,0.62544039,582.89,582.65,0.538]
[1744577629091,0.62544039,582.88,582.65,0.538]
[1744577629290,0.62544039,582.87,582.65,0.538]
[1744577629591,0.62544039,582.86,582.65,0.538]
[1744577629791,0.62544039,582.85,582.65,0.538]
[1744577630091,0.62544039,582.84,582.65,0.538]
[1744577630292,0.62544039,582.83,582.65,0.538]
[1744577630494,0.62544039,582.82,582.65,0.538]
[1744577630693,0.62544039,582.81,582.65,0.538]
[1744577630893,0.62544039,582.8,582.65,0.538]
[1744577631087,0.62544039,582.79,582.65,0.538]
[1744577631291,0.62544039,582.78,582.65,0.538]
[1744577631490,0.62544039,582.77,582.61,0.565]
[1744577631791,0.62544039,582.76,582.61,0.565]
[1744577631992,0.62544039,582.75,582.61,0.565]
[1744577632188,0.62544039,582.74,582.61,0.565]
[1744577632392,0.62544039,582.73,582.61,0.565]
[1744577632693,0.62544039,582.72,582.61,0.565]
[1744577632994,0.62544039,582.71,582.61,0.565]
[1744577633193,0.62544039,582.7,582.61,0.565]
[1744577633392,0.62544039,582.69,582.61,0.565]
[1744577633694,0.62544039,582.68,582.61,0.565]
[1744577633894,0.34283559,583.37,582.61,0.565]
[1744577634095,0.93602396,583.36,582.61,0.565]
[1744577634394,1.2788713,583.35,582.61,0.565]
[1744577634594,1.27887731,583.34,582.61,0.565]
[1744577634794,1.27888319,583.33,582.61,0.565]
[1744577634995,0.93607501,583.32,582.61,0.565]
[1744577635194,0.93607501,583.31,582.61,0.565]
[1744577635394,0.93607501,583.3,582.61,0.565]
[1744577635697,0.93607501,583.29,582.62,0.548]
[1744577635894,0.93607501,583.28,582.62,0.548]
[1744577636094,0.93607501,583.27,582.62,0.548]
[1744577636390,0.93607501,583.26,582.62,0.548]
[1744577636594,1.27898113,583.25,582.62,0.548]
[1744577636787,0.93607501,583.24,582.62,0.548]
[1744577636991,0.93607501,583.23,582.62,0.548]
[1744577637188,0.93607501,583.22,582.62,0.548]
[1744577637489,0.93607501,583.21,582.62,0.548]
[1744577637692,0.93618202,583.2,582.62,0.548]
[1744577637889,0.93618202,583.19,582.62,0.548]
[1744577638094,0.93618202,583.18,582.62,0.548]
[1744577638295,0.93618202,583.17,582.62,0.548]
[1744577638495,0.93618202,583.16,582.62,0.548]
[1744577638695,0.93618202,583.15,582.62,0.548]
[1744577638896,0.93618202,583.14,582.62,0.548]
[1744577639096,0.93618202,583.13,582.62,0.548]
[1744577639294,0.93618476,583.12,582.62,0.548]
[1744577639495,0.62522739,583.11,582.62,0.548]
[1744577639694,0.62522739,583.1,582.62,0.548]
[1744577639893,0.62522739,583.09,582.62,0.548]
[1744577640096,0.62522739,583.08,582.62,0.548]
[1744577640297,0.62522739,583.07,582.62,0.548]
[1744577640493,0.62522739,583.06,582.62,0.548]
[1744577640693,0.62522739,583.05,582.62,0.548]
[1744577640900,0.62522739,583.04,582.62,0.548]
[1744577641093,0.62522739,583.03,582.62,0.548]
[1744577641298,0.62522739,583.02,582.62,0.548]
[1744577641600,0.62522739,583.01,582.62,0.548]
[1744577641799,0.62522739,583.0,582.62,0.548]
[1744577641992,0.62522739,582.99,582.62,0.548]
[1744577642294,0.62522739,582.98,582.62,0.548]
[1744577642493,0.62616906,582.97,582.62,0.548]
[1744577642693,0.62616906,582.96,582.62,0.548]
[1744577642894,0.62616906,582.95,582.62,0.548]
[1744577643092,0.62616906,582.94,582.62,0.548]
[1744577643296,0.62616906,582.93,582.62,0.548]
[1744577643494,0.62604415,582.92,582.62,0.548]
[1744577643698,0.62604415,582.91,582.62,0.548]
[1744577643993,0.62604415,582.9,582.62,0.548]
[1744577644195,0.34290612,583.25,582.62,0.548]
[1744577644196,0.62604415,582.89,582.62,0.548]
[1744577644497,0.62604415,582.88,582.62,0.548]
[1744577644695,0.62604415,582.87,582.62,0.548]
[1744577644997,0.62604415,582.86,582.62,0.548]
[1744577645198,0.62604415,582.85,582.62,0.548]
[1744577645494,0.62604415,582.84,582.62,0.548]
[1744577645697,0.62604415,582.83,582.62,0.548]
[1744577645898,0.62604415,582.82,582.62,0.548]
[1744577646099,0.62604415,582.81,582.62,0.548]
[1744577646399,0.62604415,582.8,582.62,0.548]
[1744577646699,0.62604415,582.79,582.59,0.71]
[1744577646895,0.62604415,582.78,582.59,0.71]
[1744577647098,0.62604415,582.77,582.59,0.71]
[1744577647400,0.62604415,582.76,582.59,0.71]
[1744577647599,0.34290612,583.25,582.59,0.71]
[1744577647600,0.62604415,582.75,582.59,0.71]
[1744577647799,0.62604415,582.74,582.59,0.71]
[1744577648000,0.62604415,582.73,582.59,0.71]